{"text_format":"3","workbook":"xlsx","n_sheets":3,"sheets":["Потенційні клієнти","Прогнозований збут ","Щомісячний зважений прогноз"],"not_rendered":{"charts":1,"defined_names":10},"read":"whole","date_system":"1900"}

{"sheet":"Потенційні клієнти","index":0,"n_rows":9,"n_cols":10,"rows_kept":9}
[null,"Назва компанії"]
[null,"Відстеження відомостей про потенційних клієнтів"]
[null,{"$f":"TODAY()","v":"2022-04-06"}]
[{"$nulls":8},{"$f":"Назва_компанії","v":"Назва компанії"},"КОНФІДЕНЦІЙНА ІНФОРМАЦІЯ"]
[null,"Назва потенційної компанії-клієнта","Контактна інформація потенційного клієнта","Джерело \nпотенційного клієнта","Регіон \nпотенційного клієнта","Тип \nпотенційного клієнта","Можливий прибуток","Шанс \nзбуту","Місяць \nпрогнозування","Зважений \nпрогноз"]
[null,"A. Datum Corporation",{"$nulls":3},"Стратегічний",{"v":300000,"d":"300,000.00 ₴"},{"v":0.9,"d":"90%"},"Січень",{"$f":"IFERROR(IF(ПотенційнийКлієнт[[#This Row],[Шанс \nзбуту]]<>\"\",ПотенційнийКлієнт[[#This Row],[Шанс \nзбуту]]*ПотенційнийКлієнт[[#This Row],[Можливий прибуток]],\"\"),\"\")","v":{"v":270000,"d":"270,000.00 ₴"}}]
[null,"ТОВ \"Домени України\"",{"$nulls":3},"Стратегічний",{"v":200000,"d":"200,000.00 ₴"},{"v":0.1,"d":"10%"},"Лютий",{"$f":"IFERROR(IF(ПотенційнийКлієнт[[#This Row],[Шанс \nзбуту]]<>\"\",ПотенційнийКлієнт[[#This Row],[Шанс \nзбуту]]*ПотенційнийКлієнт[[#This Row],[Можливий прибуток]],\"\"),\"\")","v":{"v":20000,"d":"20,000.00 ₴"}}]
[null,"Компанія \"Товари та послуги\"",{"$nulls":3},"Тактичний",{"v":100000,"d":"100,000.00 ₴"},{"v":0.2,"d":"20%"},"Березень",{"$f":"IFERROR(IF(ПотенційнийКлієнт[[#This Row],[Шанс \nзбуту]]<>\"\",ПотенційнийКлієнт[[#This Row],[Шанс \nзбуту]]*ПотенційнийКлієнт[[#This Row],[Можливий прибуток]],\"\"),\"\")","v":{"v":20000,"d":"20,000.00 ₴"}}]
[null,"Підсумок",{"$nulls":4},{"$f":"SUBTOTAL(109,ПотенційнийКлієнт[Можливий прибуток])","v":{"v":600000,"d":"600,000.00 ₴"}},null,null,{"$f":"SUBTOTAL(109,ПотенційнийКлієнт[Зважений \nпрогноз])","v":{"v":310000,"d":"310,000.00 ₴"}}]

{"sheet":"Прогнозований збут ","index":1,"n_rows":21,"n_cols":14,"rows_kept":21,"merged":[[3,12,3,13]]}
[null,{"$f":"Назва_компанії","v":"Назва компанії"}]
[null,"Прогнозований збут "]
[null,{"$f":"ДатаВідстеження","v":"2022-04-06"}]
[{"$nulls":11},{"$f":"Назва_компанії","v":"Назва компанії"},"КОНФІДЕНЦІЙНА ІНФОРМАЦІЯ"]
[null,"Назва потенційної компанії-клієнта","Прогноз на \nсічень","Прогноз на \nлютий","Прогноз на \nберезень","Прогноз на \nквітень","Прогноз на \nтравень","Прогноз на \nчервень","Прогноз на липень","Прогноз на \nсерпень","Прогноз на \nвересень","Прогноз на \nжовтень","Прогноз на \nлистопад","Прогноз на \nгрудень"]
[null,{"$f":"IFERROR(IF(AND(ПотенційнийКлієнт[[#This Row],[Назва потенційної компанії-клієнта]] <> \"\", ROW(ПрогнозованийЗбут[Назва потенційної компанії-клієнта])<>ОстаннійЗапис),ПотенційнийКлієнт[Назва потенційної компанії-клієнта], \"\"),\"\")","v":"A. Datum Corporation"},{"$f":"IFERROR(IF(ПотенційнийКлієнт[[#This Row],[Місяць \nпрогнозування]] <>\"\",IF(ПотенційнийКлієнт[[#This Row],[Місяць \nпрогнозування]]= \"Січень\",ПотенційнийКлієнт[Зважений \nпрогноз],0),\"\"),\"\")","v":{"v":270000,"d":"270,000 ₴"}},{"$f":"IFERROR(IF(ПотенційнийКлієнт[[#This Row],[Місяць \nпрогнозування]] <>\"\",IF(ПотенційнийКлієнт[[#This Row],[Місяць \nпрогнозування]] = \"Лютий\",ПотенційнийКлієнт[Зважений \nпрогноз],0),\"\"),\"\")","v":{"v":0,"d":"0 ₴"}},{"$f":"IFERROR(IF(ПотенційнийКлієнт[[#This Row],[Місяць \nпрогнозування]] <>\"\",IF(ПотенційнийКлієнт[[#This Row],[Місяць \nпрогнозування]] = \"Березень\",ПотенційнийКлієнт[Зважений \nпрогноз],0),\"\"),\"\")","v":{"v":0,"d":"0 ₴"}},{"$f":"IFERROR(IF(ПотенційнийКлієнт[[#This Row],[Місяць \nпрогнозування]] <>\"\",IF(ПотенційнийКлієнт[[#This Row],[Місяць \nпрогнозування]] = \"Прогноз на\",ПотенційнийКлієнт[Зважений \nпрогноз],0),\"\"),\"\")","v":{"v":0,"d":"0 ₴"}},{"$f":"IFERROR(IF(ПотенційнийКлієнт[[#This Row],[Місяць \nпрогнозування]] <>\"\",IF(ПотенційнийКлієнт[[#This Row],[Місяць \nпрогнозування]] = \"Прогноз на\",ПотенційнийКлієнт[Зважений \nпрогноз],0),\"\"),\"\")","v":{"v":0,"d":"0 ₴"}},{"$f":"IFERROR(IF(ПотенційнийКлієнт[[#This Row],[Місяць \nпрогнозування]] <>\"\",IF(ПотенційнийКлієнт[[#This Row],[Місяць \nпрогнозування]] = \"Прогноз на\",ПотенційнийКлієнт[Зважений \nпрогноз],0),\"\"),\"\")","v":{"v":0,"d":"0 ₴"}},{"$f":"IFERROR(IF(ПотенційнийКлієнт[[#This Row],[Місяць \nпрогнозування]] <>\"\",IF(ПотенційнийКлієнт[[#This Row],[Місяць \nпрогнозування]] = \"July\",ПотенційнийКлієнт[Зважений \nпрогноз],0),\"\"),\"\")","v":{"v":0,"d":"0 ₴"}},{"$f":"IFERROR(IF(ПотенційнийКлієнт[[#This Row],[Місяць \nпрогнозування]] <>\"\",IF(ПотенційнийКлієнт[[#This Row],[Місяць \nпрогнозування]] = \"Прогноз на\",ПотенційнийКлієнт[Зважений \nпрогноз],0),\"\"),\"\")","v":{"v":0,"d":"0 ₴"}},{"$f":"IFERROR(IF(ПотенційнийКлієнт[[#This Row],[Місяць \nпрогнозування]] <>\"\",IF(ПотенційнийКлієнт[[#This Row],[Місяць \nпрогнозування]] = \"Прогноз на\",ПотенційнийКлієнт[Зважений \nпрогноз],0),\"\"),\"\")","v":{"v":0,"d":"0 ₴"}},{"$f":"IFERROR(IF(ПотенційнийКлієнт[[#This Row],[Місяць \nпрогнозування]] <>\"\",IF(ПотенційнийКлієнт[[#This Row],[Місяць \nпрогнозування]] = \"Прогноз на\",ПотенційнийКлієнт[Зважений \nпрогноз],0),\"\"),\"\")","v":{"v":0,"d":"0 ₴"}},{"$f":"IFERROR(IF(ПотенційнийКлієнт[[#This Row],[Місяць \nпрогнозування]] <>\"\",IF(ПотенційнийКлієнт[[#This Row],[Місяць \nпрогнозування]] = \"Прогноз на\",ПотенційнийКлієнт[Зважений \nпрогноз],0),\"\"),\"\")","v":{"v":0,"d":"0 ₴"}},{"$f":"IFERROR(IF(ПотенційнийКлієнт[[#This Row],[Місяць \nпрогнозування]] <>\"\",IF(ПотенційнийКлієнт[[#This Row],[Місяць \nпрогнозування]] = \"Прогноз на\",ПотенційнийКлієнт[Зважений \nпрогноз],0),\"\"),\"\")","v":{"v":0,"d":"0 ₴"}}]
[null,{"$f":"IFERROR(IF(AND(ПотенційнийКлієнт[[#This Row],[Назва потенційної компанії-клієнта]] <> \"\", ROW(ПрогнозованийЗбут[Назва потенційної компанії-клієнта])<>ОстаннійЗапис),ПотенційнийКлієнт[Назва потенційної компанії-клієнта], \"\"),\"\")","v":"ТОВ \"Домени України\""},{"$f":"IFERROR(IF(ПотенційнийКлієнт[[#This Row],[Місяць \nпрогнозування]] <>\"\",IF(ПотенційнийКлієнт[[#This Row],[Місяць \nпрогнозування]]= \"Січень\",ПотенційнийКлієнт[Зважений \nпрогноз],0),\"\"),\"\")","v":{"v":0,"d":"0 ₴"}},{"$f":"IFERROR(IF(ПотенційнийКлієнт[[#This Row],[Місяць \nпрогнозування]] <>\"\",IF(ПотенційнийКлієнт[[#This Row],[Місяць \nпрогнозування]] = \"Лютий\",ПотенційнийКлієнт[Зважений \nпрогноз],0),\"\"),\"\")","v":{"v":20000,"d":"20,000 ₴"}},{"$f":"IFERROR(IF(ПотенційнийКлієнт[[#This Row],[Місяць \nпрогнозування]] <>\"\",IF(ПотенційнийКлієнт[[#This Row],[Місяць \nпрогнозування]] = \"Березень\",ПотенційнийКлієнт[Зважений \nпрогноз],0),\"\"),\"\")","v":{"v":0,"d":"0 ₴"}},{"$f":"IFERROR(IF(ПотенційнийКлієнт[[#This Row],[Місяць \nпрогнозування]] <>\"\",IF(ПотенційнийКлієнт[[#This Row],[Місяць \nпрогнозування]] = \"Прогноз на\",ПотенційнийКлієнт[Зважений \nпрогноз],0),\"\"),\"\")","v":{"v":0,"d":"0 ₴"}},{"$f":"IFERROR(IF(ПотенційнийКлієнт[[#This Row],[Місяць \nпрогнозування]] <>\"\",IF(ПотенційнийКлієнт[[#This Row],[Місяць \nпрогнозування]] = \"Прогноз на\",ПотенційнийКлієнт[Зважений \nпрогноз],0),\"\"),\"\")","v":{"v":0,"d":"0 ₴"}},{"$f":"IFERROR(IF(ПотенційнийКлієнт[[#This Row],[Місяць \nпрогнозування]] <>\"\",IF(ПотенційнийКлієнт[[#This Row],[Місяць \nпрогнозування]] = \"Прогноз на\",ПотенційнийКлієнт[Зважений \nпрогноз],0),\"\"),\"\")","v":{"v":0,"d":"0 ₴"}},{"$f":"IFERROR(IF(ПотенційнийКлієнт[[#This Row],[Місяць \nпрогнозування]] <>\"\",IF(ПотенційнийКлієнт[[#This Row],[Місяць \nпрогнозування]] = \"July\",ПотенційнийКлієнт[Зважений \nпрогноз],0),\"\"),\"\")","v":{"v":0,"d":"0 ₴"}},{"$f":"IFERROR(IF(ПотенційнийКлієнт[[#This Row],[Місяць \nпрогнозування]] <>\"\",IF(ПотенційнийКлієнт[[#This Row],[Місяць \nпрогнозування]] = \"Прогноз на\",ПотенційнийКлієнт[Зважений \nпрогноз],0),\"\"),\"\")","v":{"v":0,"d":"0 ₴"}},{"$f":"IFERROR(IF(ПотенційнийКлієнт[[#This Row],[Місяць \nпрогнозування]] <>\"\",IF(ПотенційнийКлієнт[[#This Row],[Місяць \nпрогнозування]] = \"Прогноз на\",ПотенційнийКлієнт[Зважений \nпрогноз],0),\"\"),\"\")","v":{"v":0,"d":"0 ₴"}},{"$f":"IFERROR(IF(ПотенційнийКлієнт[[#This Row],[Місяць \nпрогнозування]] <>\"\",IF(ПотенційнийКлієнт[[#This Row],[Місяць \nпрогнозування]] = \"Прогноз на\",ПотенційнийКлієнт[Зважений \nпрогноз],0),\"\"),\"\")","v":{"v":0,"d":"0 ₴"}},{"$f":"IFERROR(IF(ПотенційнийКлієнт[[#This Row],[Місяць \nпрогнозування]] <>\"\",IF(ПотенційнийКлієнт[[#This Row],[Місяць \nпрогнозування]] = \"Прогноз на\",ПотенційнийКлієнт[Зважений \nпрогноз],0),\"\"),\"\")","v":{"v":0,"d":"0 ₴"}},{"$f":"IFERROR(IF(ПотенційнийКлієнт[[#This Row],[Місяць \nпрогнозування]] <>\"\",IF(ПотенційнийКлієнт[[#This Row],[Місяць \nпрогнозування]] = \"Прогноз на\",ПотенційнийКлієнт[Зважений \nпрогноз],0),\"\"),\"\")","v":{"v":0,"d":"0 ₴"}}]
[null,{"$f":"IFERROR(IF(AND(ПотенційнийКлієнт[[#This Row],[Назва потенційної компанії-клієнта]] <> \"\", ROW(ПрогнозованийЗбут[Назва потенційної компанії-клієнта])<>ОстаннійЗапис),ПотенційнийКлієнт[Назва потенційної компанії-клієнта], \"\"),\"\")","v":"Компанія \"Товари та послуги\""},{"$f":"IFERROR(IF(ПотенційнийКлієнт[[#This Row],[Місяць \nпрогнозування]] <>\"\",IF(ПотенційнийКлієнт[[#This Row],[Місяць \nпрогнозування]]= \"Січень\",ПотенційнийКлієнт[Зважений \nпрогноз],0),\"\"),\"\")","v":{"v":0,"d":"0 ₴"}},{"$f":"IFERROR(IF(ПотенційнийКлієнт[[#This Row],[Місяць \nпрогнозування]] <>\"\",IF(ПотенційнийКлієнт[[#This Row],[Місяць \nпрогнозування]] = \"Лютий\",ПотенційнийКлієнт[Зважений \nпрогноз],0),\"\"),\"\")","v":{"v":0,"d":"0 ₴"}},{"$f":"IFERROR(IF(ПотенційнийКлієнт[[#This Row],[Місяць \nпрогнозування]] <>\"\",IF(ПотенційнийКлієнт[[#This Row],[Місяць \nпрогнозування]] = \"Березень\",ПотенційнийКлієнт[Зважений \nпрогноз],0),\"\"),\"\")","v":{"v":20000,"d":"20,000 ₴"}},{"$f":"IFERROR(IF(ПотенційнийКлієнт[[#This Row],[Місяць \nпрогнозування]] <>\"\",IF(ПотенційнийКлієнт[[#This Row],[Місяць \nпрогнозування]] = \"Прогноз на\",ПотенційнийКлієнт[Зважений \nпрогноз],0),\"\"),\"\")","v":{"v":0,"d":"0 ₴"}},{"$f":"IFERROR(IF(ПотенційнийКлієнт[[#This Row],[Місяць \nпрогнозування]] <>\"\",IF(ПотенційнийКлієнт[[#This Row],[Місяць \nпрогнозування]] = \"Прогноз на\",ПотенційнийКлієнт[Зважений \nпрогноз],0),\"\"),\"\")","v":{"v":0,"d":"0 ₴"}},{"$f":"IFERROR(IF(ПотенційнийКлієнт[[#This Row],[Місяць \nпрогнозування]] <>\"\",IF(ПотенційнийКлієнт[[#This Row],[Місяць \nпрогнозування]] = \"Прогноз на\",ПотенційнийКлієнт[Зважений \nпрогноз],0),\"\"),\"\")","v":{"v":0,"d":"0 ₴"}},{"$f":"IFERROR(IF(ПотенційнийКлієнт[[#This Row],[Місяць \nпрогнозування]] <>\"\",IF(ПотенційнийКлієнт[[#This Row],[Місяць \nпрогнозування]] = \"July\",ПотенційнийКлієнт[Зважений \nпрогноз],0),\"\"),\"\")","v":{"v":0,"d":"0 ₴"}},{"$f":"IFERROR(IF(ПотенційнийКлієнт[[#This Row],[Місяць \nпрогнозування]] <>\"\",IF(ПотенційнийКлієнт[[#This Row],[Місяць \nпрогнозування]] = \"Прогноз на\",ПотенційнийКлієнт[Зважений \nпрогноз],0),\"\"),\"\")","v":{"v":0,"d":"0 ₴"}},{"$f":"IFERROR(IF(ПотенційнийКлієнт[[#This Row],[Місяць \nпрогнозування]] <>\"\",IF(ПотенційнийКлієнт[[#This Row],[Місяць \nпрогнозування]] = \"Прогноз на\",ПотенційнийКлієнт[Зважений \nпрогноз],0),\"\"),\"\")","v":{"v":0,"d":"0 ₴"}},{"$f":"IFERROR(IF(ПотенційнийКлієнт[[#This Row],[Місяць \nпрогнозування]] <>\"\",IF(ПотенційнийКлієнт[[#This Row],[Місяць \nпрогнозування]] = \"Прогноз на\",ПотенційнийКлієнт[Зважений \nпрогноз],0),\"\"),\"\")","v":{"v":0,"d":"0 ₴"}},{"$f":"IFERROR(IF(ПотенційнийКлієнт[[#This Row],[Місяць \nпрогнозування]] <>\"\",IF(ПотенційнийКлієнт[[#This Row],[Місяць \nпрогнозування]] = \"Прогноз на\",ПотенційнийКлієнт[Зважений \nпрогноз],0),\"\"),\"\")","v":{"v":0,"d":"0 ₴"}},{"$f":"IFERROR(IF(ПотенційнийКлієнт[[#This Row],[Місяць \nпрогнозування]] <>\"\",IF(ПотенційнийКлієнт[[#This Row],[Місяць \nпрогнозування]] = \"Прогноз на\",ПотенційнийКлієнт[Зважений \nпрогноз],0),\"\"),\"\")","v":{"v":0,"d":"0 ₴"}}]
[null,{"$f":"IFERROR(IF(AND(ПотенційнийКлієнт[[#This Row],[Назва потенційної компанії-клієнта]] <> \"\", ROW(ПрогнозованийЗбут[Назва потенційної компанії-клієнта])<>ОстаннійЗапис),ПотенційнийКлієнт[Назва потенційної компанії-клієнта], \"\"),\"\")","v":""},{"$f":"IFERROR(IF(ПотенційнийКлієнт[[#This Row],[Місяць \nпрогнозування]] <>\"\",IF(ПотенційнийКлієнт[[#This Row],[Місяць \nпрогнозування]]= \"Січень\",ПотенційнийКлієнт[Зважений \nпрогноз],0),\"\"),\"\")","v":""},{"$f":"IFERROR(IF(ПотенційнийКлієнт[[#This Row],[Місяць \nпрогнозування]] <>\"\",IF(ПотенційнийКлієнт[[#This Row],[Місяць \nпрогнозування]] = \"Лютий\",ПотенційнийКлієнт[Зважений \nпрогноз],0),\"\"),\"\")","v":""},{"$f":"IFERROR(IF(ПотенційнийКлієнт[[#This Row],[Місяць \nпрогнозування]] <>\"\",IF(ПотенційнийКлієнт[[#This Row],[Місяць \nпрогнозування]] = \"Березень\",ПотенційнийКлієнт[Зважений \nпрогноз],0),\"\"),\"\")","v":""},{"$f":"IFERROR(IF(ПотенційнийКлієнт[[#This Row],[Місяць \nпрогнозування]] <>\"\",IF(ПотенційнийКлієнт[[#This Row],[Місяць \nпрогнозування]] = \"Прогноз на\",ПотенційнийКлієнт[Зважений \nпрогноз],0),\"\"),\"\")","v":""},{"$f":"IFERROR(IF(ПотенційнийКлієнт[[#This Row],[Місяць \nпрогнозування]] <>\"\",IF(ПотенційнийКлієнт[[#This Row],[Місяць \nпрогнозування]] = \"Прогноз на\",ПотенційнийКлієнт[Зважений \nпрогноз],0),\"\"),\"\")","v":""},{"$f":"IFERROR(IF(ПотенційнийКлієнт[[#This Row],[Місяць \nпрогнозування]] <>\"\",IF(ПотенційнийКлієнт[[#This Row],[Місяць \nпрогнозування]] = \"Прогноз на\",ПотенційнийКлієнт[Зважений \nпрогноз],0),\"\"),\"\")","v":""},{"$f":"IFERROR(IF(ПотенційнийКлієнт[[#This Row],[Місяць \nпрогнозування]] <>\"\",IF(ПотенційнийКлієнт[[#This Row],[Місяць \nпрогнозування]] = \"July\",ПотенційнийКлієнт[Зважений \nпрогноз],0),\"\"),\"\")","v":""},{"$f":"IFERROR(IF(ПотенційнийКлієнт[[#This Row],[Місяць \nпрогнозування]] <>\"\",IF(ПотенційнийКлієнт[[#This Row],[Місяць \nпрогнозування]] = \"Прогноз на\",ПотенційнийКлієнт[Зважений \nпрогноз],0),\"\"),\"\")","v":""},{"$f":"IFERROR(IF(ПотенційнийКлієнт[[#This Row],[Місяць \nпрогнозування]] <>\"\",IF(ПотенційнийКлієнт[[#This Row],[Місяць \nпрогнозування]] = \"Прогноз на\",ПотенційнийКлієнт[Зважений \nпрогноз],0),\"\"),\"\")","v":""},{"$f":"IFERROR(IF(ПотенційнийКлієнт[[#This Row],[Місяць \nпрогнозування]] <>\"\",IF(ПотенційнийКлієнт[[#This Row],[Місяць \nпрогнозування]] = \"Прогноз на\",ПотенційнийКлієнт[Зважений \nпрогноз],0),\"\"),\"\")","v":""},{"$f":"IFERROR(IF(ПотенційнийКлієнт[[#This Row],[Місяць \nпрогнозування]] <>\"\",IF(ПотенційнийКлієнт[[#This Row],[Місяць \nпрогнозування]] = \"Прогноз на\",ПотенційнийКлієнт[Зважений \nпрогноз],0),\"\"),\"\")","v":""},{"$f":"IFERROR(IF(ПотенційнийКлієнт[[#This Row],[Місяць \nпрогнозування]] <>\"\",IF(ПотенційнийКлієнт[[#This Row],[Місяць \nпрогнозування]] = \"Прогноз на\",ПотенційнийКлієнт[Зважений \nпрогноз],0),\"\"),\"\")","v":""}]
[null,{"$f":"IFERROR(IF(AND(ПотенційнийКлієнт[[#This Row],[Назва потенційної компанії-клієнта]] <> \"\", ROW(ПрогнозованийЗбут[Назва потенційної компанії-клієнта])<>ОстаннійЗапис),ПотенційнийКлієнт[Назва потенційної компанії-клієнта], \"\"),\"\")","v":""},{"$f":"IFERROR(IF(ПотенційнийКлієнт[[#This Row],[Місяць \nпрогнозування]] <>\"\",IF(ПотенційнийКлієнт[[#This Row],[Місяць \nпрогнозування]]= \"Січень\",ПотенційнийКлієнт[Зважений \nпрогноз],0),\"\"),\"\")","v":""},{"$f":"IFERROR(IF(ПотенційнийКлієнт[[#This Row],[Місяць \nпрогнозування]] <>\"\",IF(ПотенційнийКлієнт[[#This Row],[Місяць \nпрогнозування]] = \"Лютий\",ПотенційнийКлієнт[Зважений \nпрогноз],0),\"\"),\"\")","v":""},{"$f":"IFERROR(IF(ПотенційнийКлієнт[[#This Row],[Місяць \nпрогнозування]] <>\"\",IF(ПотенційнийКлієнт[[#This Row],[Місяць \nпрогнозування]] = \"Березень\",ПотенційнийКлієнт[Зважений \nпрогноз],0),\"\"),\"\")","v":""},{"$f":"IFERROR(IF(ПотенційнийКлієнт[[#This Row],[Місяць \nпрогнозування]] <>\"\",IF(ПотенційнийКлієнт[[#This Row],[Місяць \nпрогнозування]] = \"Прогноз на\",ПотенційнийКлієнт[Зважений \nпрогноз],0),\"\"),\"\")","v":""},{"$f":"IFERROR(IF(ПотенційнийКлієнт[[#This Row],[Місяць \nпрогнозування]] <>\"\",IF(ПотенційнийКлієнт[[#This Row],[Місяць \nпрогнозування]] = \"Прогноз на\",ПотенційнийКлієнт[Зважений \nпрогноз],0),\"\"),\"\")","v":""},{"$f":"IFERROR(IF(ПотенційнийКлієнт[[#This Row],[Місяць \nпрогнозування]] <>\"\",IF(ПотенційнийКлієнт[[#This Row],[Місяць \nпрогнозування]] = \"Прогноз на\",ПотенційнийКлієнт[Зважений \nпрогноз],0),\"\"),\"\")","v":""},{"$f":"IFERROR(IF(ПотенційнийКлієнт[[#This Row],[Місяць \nпрогнозування]] <>\"\",IF(ПотенційнийКлієнт[[#This Row],[Місяць \nпрогнозування]] = \"July\",ПотенційнийКлієнт[Зважений \nпрогноз],0),\"\"),\"\")","v":""},{"$f":"IFERROR(IF(ПотенційнийКлієнт[[#This Row],[Місяць \nпрогнозування]] <>\"\",IF(ПотенційнийКлієнт[[#This Row],[Місяць \nпрогнозування]] = \"Прогноз на\",ПотенційнийКлієнт[Зважений \nпрогноз],0),\"\"),\"\")","v":""},{"$f":"IFERROR(IF(ПотенційнийКлієнт[[#This Row],[Місяць \nпрогнозування]] <>\"\",IF(ПотенційнийКлієнт[[#This Row],[Місяць \nпрогнозування]] = \"Прогноз на\",ПотенційнийКлієнт[Зважений \nпрогноз],0),\"\"),\"\")","v":""},{"$f":"IFERROR(IF(ПотенційнийКлієнт[[#This Row],[Місяць \nпрогнозування]] <>\"\",IF(ПотенційнийКлієнт[[#This Row],[Місяць \nпрогнозування]] = \"Прогноз на\",ПотенційнийКлієнт[Зважений \nпрогноз],0),\"\"),\"\")","v":""},{"$f":"IFERROR(IF(ПотенційнийКлієнт[[#This Row],[Місяць \nпрогнозування]] <>\"\",IF(ПотенційнийКлієнт[[#This Row],[Місяць \nпрогнозування]] = \"Прогноз на\",ПотенційнийКлієнт[Зважений \nпрогноз],0),\"\"),\"\")","v":""},{"$f":"IFERROR(IF(ПотенційнийКлієнт[[#This Row],[Місяць \nпрогнозування]] <>\"\",IF(ПотенційнийКлієнт[[#This Row],[Місяць \nпрогнозування]] = \"Прогноз на\",ПотенційнийКлієнт[Зважений \nпрогноз],0),\"\"),\"\")","v":""}]
[null,{"$f":"IFERROR(IF(AND(ПотенційнийКлієнт[[#This Row],[Назва потенційної компанії-клієнта]] <> \"\", ROW(ПрогнозованийЗбут[Назва потенційної компанії-клієнта])<>ОстаннійЗапис),ПотенційнийКлієнт[Назва потенційної компанії-клієнта], \"\"),\"\")","v":""},{"$f":"IFERROR(IF(ПотенційнийКлієнт[[#This Row],[Місяць \nпрогнозування]] <>\"\",IF(ПотенційнийКлієнт[[#This Row],[Місяць \nпрогнозування]]= \"Січень\",ПотенційнийКлієнт[Зважений \nпрогноз],0),\"\"),\"\")","v":""},{"$f":"IFERROR(IF(ПотенційнийКлієнт[[#This Row],[Місяць \nпрогнозування]] <>\"\",IF(ПотенційнийКлієнт[[#This Row],[Місяць \nпрогнозування]] = \"Лютий\",ПотенційнийКлієнт[Зважений \nпрогноз],0),\"\"),\"\")","v":""},{"$f":"IFERROR(IF(ПотенційнийКлієнт[[#This Row],[Місяць \nпрогнозування]] <>\"\",IF(ПотенційнийКлієнт[[#This Row],[Місяць \nпрогнозування]] = \"Березень\",ПотенційнийКлієнт[Зважений \nпрогноз],0),\"\"),\"\")","v":""},{"$f":"IFERROR(IF(ПотенційнийКлієнт[[#This Row],[Місяць \nпрогнозування]] <>\"\",IF(ПотенційнийКлієнт[[#This Row],[Місяць \nпрогнозування]] = \"Прогноз на\",ПотенційнийКлієнт[Зважений \nпрогноз],0),\"\"),\"\")","v":""},{"$f":"IFERROR(IF(ПотенційнийКлієнт[[#This Row],[Місяць \nпрогнозування]] <>\"\",IF(ПотенційнийКлієнт[[#This Row],[Місяць \nпрогнозування]] = \"Прогноз на\",ПотенційнийКлієнт[Зважений \nпрогноз],0),\"\"),\"\")","v":""},{"$f":"IFERROR(IF(ПотенційнийКлієнт[[#This Row],[Місяць \nпрогнозування]] <>\"\",IF(ПотенційнийКлієнт[[#This Row],[Місяць \nпрогнозування]] = \"Прогноз на\",ПотенційнийКлієнт[Зважений \nпрогноз],0),\"\"),\"\")","v":""},{"$f":"IFERROR(IF(ПотенційнийКлієнт[[#This Row],[Місяць \nпрогнозування]] <>\"\",IF(ПотенційнийКлієнт[[#This Row],[Місяць \nпрогнозування]] = \"July\",ПотенційнийКлієнт[Зважений \nпрогноз],0),\"\"),\"\")","v":""},{"$f":"IFERROR(IF(ПотенційнийКлієнт[[#This Row],[Місяць \nпрогнозування]] <>\"\",IF(ПотенційнийКлієнт[[#This Row],[Місяць \nпрогнозування]] = \"Прогноз на\",ПотенційнийКлієнт[Зважений \nпрогноз],0),\"\"),\"\")","v":""},{"$f":"IFERROR(IF(ПотенційнийКлієнт[[#This Row],[Місяць \nпрогнозування]] <>\"\",IF(ПотенційнийКлієнт[[#This Row],[Місяць \nпрогнозування]] = \"Прогноз на\",ПотенційнийКлієнт[Зважений \nпрогноз],0),\"\"),\"\")","v":""},{"$f":"IFERROR(IF(ПотенційнийКлієнт[[#This Row],[Місяць \nпрогнозування]] <>\"\",IF(ПотенційнийКлієнт[[#This Row],[Місяць \nпрогнозування]] = \"Прогноз на\",ПотенційнийКлієнт[Зважений \nпрогноз],0),\"\"),\"\")","v":""},{"$f":"IFERROR(IF(ПотенційнийКлієнт[[#This Row],[Місяць \nпрогнозування]] <>\"\",IF(ПотенційнийКлієнт[[#This Row],[Місяць \nпрогнозування]] = \"Прогноз на\",ПотенційнийКлієнт[Зважений \nпрогноз],0),\"\"),\"\")","v":""},{"$f":"IFERROR(IF(ПотенційнийКлієнт[[#This Row],[Місяць \nпрогнозування]] <>\"\",IF(ПотенційнийКлієнт[[#This Row],[Місяць \nпрогнозування]] = \"Прогноз на\",ПотенційнийКлієнт[Зважений \nпрогноз],0),\"\"),\"\")","v":""}]
[null,{"$f":"IFERROR(IF(AND(ПотенційнийКлієнт[[#This Row],[Назва потенційної компанії-клієнта]] <> \"\", ROW(ПрогнозованийЗбут[Назва потенційної компанії-клієнта])<>ОстаннійЗапис),ПотенційнийКлієнт[Назва потенційної компанії-клієнта], \"\"),\"\")","v":""},{"$f":"IFERROR(IF(ПотенційнийКлієнт[[#This Row],[Місяць \nпрогнозування]] <>\"\",IF(ПотенційнийКлієнт[[#This Row],[Місяць \nпрогнозування]]= \"Січень\",ПотенційнийКлієнт[Зважений \nпрогноз],0),\"\"),\"\")","v":""},{"$f":"IFERROR(IF(ПотенційнийКлієнт[[#This Row],[Місяць \nпрогнозування]] <>\"\",IF(ПотенційнийКлієнт[[#This Row],[Місяць \nпрогнозування]] = \"Лютий\",ПотенційнийКлієнт[Зважений \nпрогноз],0),\"\"),\"\")","v":""},{"$f":"IFERROR(IF(ПотенційнийКлієнт[[#This Row],[Місяць \nпрогнозування]] <>\"\",IF(ПотенційнийКлієнт[[#This Row],[Місяць \nпрогнозування]] = \"Березень\",ПотенційнийКлієнт[Зважений \nпрогноз],0),\"\"),\"\")","v":""},{"$f":"IFERROR(IF(ПотенційнийКлієнт[[#This Row],[Місяць \nпрогнозування]] <>\"\",IF(ПотенційнийКлієнт[[#This Row],[Місяць \nпрогнозування]] = \"Прогноз на\",ПотенційнийКлієнт[Зважений \nпрогноз],0),\"\"),\"\")","v":""},{"$f":"IFERROR(IF(ПотенційнийКлієнт[[#This Row],[Місяць \nпрогнозування]] <>\"\",IF(ПотенційнийКлієнт[[#This Row],[Місяць \nпрогнозування]] = \"Прогноз на\",ПотенційнийКлієнт[Зважений \nпрогноз],0),\"\"),\"\")","v":""},{"$f":"IFERROR(IF(ПотенційнийКлієнт[[#This Row],[Місяць \nпрогнозування]] <>\"\",IF(ПотенційнийКлієнт[[#This Row],[Місяць \nпрогнозування]] = \"Прогноз на\",ПотенційнийКлієнт[Зважений \nпрогноз],0),\"\"),\"\")","v":""},{"$f":"IFERROR(IF(ПотенційнийКлієнт[[#This Row],[Місяць \nпрогнозування]] <>\"\",IF(ПотенційнийКлієнт[[#This Row],[Місяць \nпрогнозування]] = \"July\",ПотенційнийКлієнт[Зважений \nпрогноз],0),\"\"),\"\")","v":""},{"$f":"IFERROR(IF(ПотенційнийКлієнт[[#This Row],[Місяць \nпрогнозування]] <>\"\",IF(ПотенційнийКлієнт[[#This Row],[Місяць \nпрогнозування]] = \"Прогноз на\",ПотенційнийКлієнт[Зважений \nпрогноз],0),\"\"),\"\")","v":""},{"$f":"IFERROR(IF(ПотенційнийКлієнт[[#This Row],[Місяць \nпрогнозування]] <>\"\",IF(ПотенційнийКлієнт[[#This Row],[Місяць \nпрогнозування]] = \"Прогноз на\",ПотенційнийКлієнт[Зважений \nпрогноз],0),\"\"),\"\")","v":""},{"$f":"IFERROR(IF(ПотенційнийКлієнт[[#This Row],[Місяць \nпрогнозування]] <>\"\",IF(ПотенційнийКлієнт[[#This Row],[Місяць \nпрогнозування]] = \"Прогноз на\",ПотенційнийКлієнт[Зважений \nпрогноз],0),\"\"),\"\")","v":""},{"$f":"IFERROR(IF(ПотенційнийКлієнт[[#This Row],[Місяць \nпрогнозування]] <>\"\",IF(ПотенційнийКлієнт[[#This Row],[Місяць \nпрогнозування]] = \"Прогноз на\",ПотенційнийКлієнт[Зважений \nпрогноз],0),\"\"),\"\")","v":""},{"$f":"IFERROR(IF(ПотенційнийКлієнт[[#This Row],[Місяць \nпрогнозування]] <>\"\",IF(ПотенційнийКлієнт[[#This Row],[Місяць \nпрогнозування]] = \"Прогноз на\",ПотенційнийКлієнт[Зважений \nпрогноз],0),\"\"),\"\")","v":""}]
[null,{"$f":"IFERROR(IF(AND(ПотенційнийКлієнт[[#This Row],[Назва потенційної компанії-клієнта]] <> \"\", ROW(ПрогнозованийЗбут[Назва потенційної компанії-клієнта])<>ОстаннійЗапис),ПотенційнийКлієнт[Назва потенційної компанії-клієнта], \"\"),\"\")","v":""},{"$f":"IFERROR(IF(ПотенційнийКлієнт[[#This Row],[Місяць \nпрогнозування]] <>\"\",IF(ПотенційнийКлієнт[[#This Row],[Місяць \nпрогнозування]]= \"Січень\",ПотенційнийКлієнт[Зважений \nпрогноз],0),\"\"),\"\")","v":""},{"$f":"IFERROR(IF(ПотенційнийКлієнт[[#This Row],[Місяць \nпрогнозування]] <>\"\",IF(ПотенційнийКлієнт[[#This Row],[Місяць \nпрогнозування]] = \"Лютий\",ПотенційнийКлієнт[Зважений \nпрогноз],0),\"\"),\"\")","v":""},{"$f":"IFERROR(IF(ПотенційнийКлієнт[[#This Row],[Місяць \nпрогнозування]] <>\"\",IF(ПотенційнийКлієнт[[#This Row],[Місяць \nпрогнозування]] = \"Березень\",ПотенційнийКлієнт[Зважений \nпрогноз],0),\"\"),\"\")","v":""},{"$f":"IFERROR(IF(ПотенційнийКлієнт[[#This Row],[Місяць \nпрогнозування]] <>\"\",IF(ПотенційнийКлієнт[[#This Row],[Місяць \nпрогнозування]] = \"Прогноз на\",ПотенційнийКлієнт[Зважений \nпрогноз],0),\"\"),\"\")","v":""},{"$f":"IFERROR(IF(ПотенційнийКлієнт[[#This Row],[Місяць \nпрогнозування]] <>\"\",IF(ПотенційнийКлієнт[[#This Row],[Місяць \nпрогнозування]] = \"Прогноз на\",ПотенційнийКлієнт[Зважений \nпрогноз],0),\"\"),\"\")","v":""},{"$f":"IFERROR(IF(ПотенційнийКлієнт[[#This Row],[Місяць \nпрогнозування]] <>\"\",IF(ПотенційнийКлієнт[[#This Row],[Місяць \nпрогнозування]] = \"Прогноз на\",ПотенційнийКлієнт[Зважений \nпрогноз],0),\"\"),\"\")","v":""},{"$f":"IFERROR(IF(ПотенційнийКлієнт[[#This Row],[Місяць \nпрогнозування]] <>\"\",IF(ПотенційнийКлієнт[[#This Row],[Місяць \nпрогнозування]] = \"July\",ПотенційнийКлієнт[Зважений \nпрогноз],0),\"\"),\"\")","v":""},{"$f":"IFERROR(IF(ПотенційнийКлієнт[[#This Row],[Місяць \nпрогнозування]] <>\"\",IF(ПотенційнийКлієнт[[#This Row],[Місяць \nпрогнозування]] = \"Прогноз на\",ПотенційнийКлієнт[Зважений \nпрогноз],0),\"\"),\"\")","v":""},{"$f":"IFERROR(IF(ПотенційнийКлієнт[[#This Row],[Місяць \nпрогнозування]] <>\"\",IF(ПотенційнийКлієнт[[#This Row],[Місяць \nпрогнозування]] = \"Прогноз на\",ПотенційнийКлієнт[Зважений \nпрогноз],0),\"\"),\"\")","v":""},{"$f":"IFERROR(IF(ПотенційнийКлієнт[[#This Row],[Місяць \nпрогнозування]] <>\"\",IF(ПотенційнийКлієнт[[#This Row],[Місяць \nпрогнозування]] = \"Прогноз на\",ПотенційнийКлієнт[Зважений \nпрогноз],0),\"\"),\"\")","v":""},{"$f":"IFERROR(IF(ПотенційнийКлієнт[[#This Row],[Місяць \nпрогнозування]] <>\"\",IF(ПотенційнийКлієнт[[#This Row],[Місяць \nпрогнозування]] = \"Прогноз на\",ПотенційнийКлієнт[Зважений \nпрогноз],0),\"\"),\"\")","v":""},{"$f":"IFERROR(IF(ПотенційнийКлієнт[[#This Row],[Місяць \nпрогнозування]] <>\"\",IF(ПотенційнийКлієнт[[#This Row],[Місяць \nпрогнозування]] = \"Прогноз на\",ПотенційнийКлієнт[Зважений \nпрогноз],0),\"\"),\"\")","v":""}]
[null,{"$f":"IFERROR(IF(AND(ПотенційнийКлієнт[[#This Row],[Назва потенційної компанії-клієнта]] <> \"\", ROW(ПрогнозованийЗбут[Назва потенційної компанії-клієнта])<>ОстаннійЗапис),ПотенційнийКлієнт[Назва потенційної компанії-клієнта], \"\"),\"\")","v":""},{"$f":"IFERROR(IF(ПотенційнийКлієнт[[#This Row],[Місяць \nпрогнозування]] <>\"\",IF(ПотенційнийКлієнт[[#This Row],[Місяць \nпрогнозування]]= \"Січень\",ПотенційнийКлієнт[Зважений \nпрогноз],0),\"\"),\"\")","v":""},{"$f":"IFERROR(IF(ПотенційнийКлієнт[[#This Row],[Місяць \nпрогнозування]] <>\"\",IF(ПотенційнийКлієнт[[#This Row],[Місяць \nпрогнозування]] = \"Лютий\",ПотенційнийКлієнт[Зважений \nпрогноз],0),\"\"),\"\")","v":""},{"$f":"IFERROR(IF(ПотенційнийКлієнт[[#This Row],[Місяць \nпрогнозування]] <>\"\",IF(ПотенційнийКлієнт[[#This Row],[Місяць \nпрогнозування]] = \"Березень\",ПотенційнийКлієнт[Зважений \nпрогноз],0),\"\"),\"\")","v":""},{"$f":"IFERROR(IF(ПотенційнийКлієнт[[#This Row],[Місяць \nпрогнозування]] <>\"\",IF(ПотенційнийКлієнт[[#This Row],[Місяць \nпрогнозування]] = \"Прогноз на\",ПотенційнийКлієнт[Зважений \nпрогноз],0),\"\"),\"\")","v":""},{"$f":"IFERROR(IF(ПотенційнийКлієнт[[#This Row],[Місяць \nпрогнозування]] <>\"\",IF(ПотенційнийКлієнт[[#This Row],[Місяць \nпрогнозування]] = \"Прогноз на\",ПотенційнийКлієнт[Зважений \nпрогноз],0),\"\"),\"\")","v":""},{"$f":"IFERROR(IF(ПотенційнийКлієнт[[#This Row],[Місяць \nпрогнозування]] <>\"\",IF(ПотенційнийКлієнт[[#This Row],[Місяць \nпрогнозування]] = \"Прогноз на\",ПотенційнийКлієнт[Зважений \nпрогноз],0),\"\"),\"\")","v":""},{"$f":"IFERROR(IF(ПотенційнийКлієнт[[#This Row],[Місяць \nпрогнозування]] <>\"\",IF(ПотенційнийКлієнт[[#This Row],[Місяць \nпрогнозування]] = \"July\",ПотенційнийКлієнт[Зважений \nпрогноз],0),\"\"),\"\")","v":""},{"$f":"IFERROR(IF(ПотенційнийКлієнт[[#This Row],[Місяць \nпрогнозування]] <>\"\",IF(ПотенційнийКлієнт[[#This Row],[Місяць \nпрогнозування]] = \"Прогноз на\",ПотенційнийКлієнт[Зважений \nпрогноз],0),\"\"),\"\")","v":""},{"$f":"IFERROR(IF(ПотенційнийКлієнт[[#This Row],[Місяць \nпрогнозування]] <>\"\",IF(ПотенційнийКлієнт[[#This Row],[Місяць \nпрогнозування]] = \"Прогноз на\",ПотенційнийКлієнт[Зважений \nпрогноз],0),\"\"),\"\")","v":""},{"$f":"IFERROR(IF(ПотенційнийКлієнт[[#This Row],[Місяць \nпрогнозування]] <>\"\",IF(ПотенційнийКлієнт[[#This Row],[Місяць \nпрогнозування]] = \"Прогноз на\",ПотенційнийКлієнт[Зважений \nпрогноз],0),\"\"),\"\")","v":""},{"$f":"IFERROR(IF(ПотенційнийКлієнт[[#This Row],[Місяць \nпрогнозування]] <>\"\",IF(ПотенційнийКлієнт[[#This Row],[Місяць \nпрогнозування]] = \"Прогноз на\",ПотенційнийКлієнт[Зважений \nпрогноз],0),\"\"),\"\")","v":""},{"$f":"IFERROR(IF(ПотенційнийКлієнт[[#This Row],[Місяць \nпрогнозування]] <>\"\",IF(ПотенційнийКлієнт[[#This Row],[Місяць \nпрогнозування]] = \"Прогноз на\",ПотенційнийКлієнт[Зважений \nпрогноз],0),\"\"),\"\")","v":""}]
[null,{"$f":"IFERROR(IF(AND(ПотенційнийКлієнт[[#This Row],[Назва потенційної компанії-клієнта]] <> \"\", ROW(ПрогнозованийЗбут[Назва потенційної компанії-клієнта])<>ОстаннійЗапис),ПотенційнийКлієнт[Назва потенційної компанії-клієнта], \"\"),\"\")","v":""},{"$f":"IFERROR(IF(ПотенційнийКлієнт[[#This Row],[Місяць \nпрогнозування]] <>\"\",IF(ПотенційнийКлієнт[[#This Row],[Місяць \nпрогнозування]]= \"Січень\",ПотенційнийКлієнт[Зважений \nпрогноз],0),\"\"),\"\")","v":""},{"$f":"IFERROR(IF(ПотенційнийКлієнт[[#This Row],[Місяць \nпрогнозування]] <>\"\",IF(ПотенційнийКлієнт[[#This Row],[Місяць \nпрогнозування]] = \"Лютий\",ПотенційнийКлієнт[Зважений \nпрогноз],0),\"\"),\"\")","v":""},{"$f":"IFERROR(IF(ПотенційнийКлієнт[[#This Row],[Місяць \nпрогнозування]] <>\"\",IF(ПотенційнийКлієнт[[#This Row],[Місяць \nпрогнозування]] = \"Березень\",ПотенційнийКлієнт[Зважений \nпрогноз],0),\"\"),\"\")","v":""},{"$f":"IFERROR(IF(ПотенційнийКлієнт[[#This Row],[Місяць \nпрогнозування]] <>\"\",IF(ПотенційнийКлієнт[[#This Row],[Місяць \nпрогнозування]] = \"Прогноз на\",ПотенційнийКлієнт[Зважений \nпрогноз],0),\"\"),\"\")","v":""},{"$f":"IFERROR(IF(ПотенційнийКлієнт[[#This Row],[Місяць \nпрогнозування]] <>\"\",IF(ПотенційнийКлієнт[[#This Row],[Місяць \nпрогнозування]] = \"Прогноз на\",ПотенційнийКлієнт[Зважений \nпрогноз],0),\"\"),\"\")","v":""},{"$f":"IFERROR(IF(ПотенційнийКлієнт[[#This Row],[Місяць \nпрогнозування]] <>\"\",IF(ПотенційнийКлієнт[[#This Row],[Місяць \nпрогнозування]] = \"Прогноз на\",ПотенційнийКлієнт[Зважений \nпрогноз],0),\"\"),\"\")","v":""},{"$f":"IFERROR(IF(ПотенційнийКлієнт[[#This Row],[Місяць \nпрогнозування]] <>\"\",IF(ПотенційнийКлієнт[[#This Row],[Місяць \nпрогнозування]] = \"July\",ПотенційнийКлієнт[Зважений \nпрогноз],0),\"\"),\"\")","v":""},{"$f":"IFERROR(IF(ПотенційнийКлієнт[[#This Row],[Місяць \nпрогнозування]] <>\"\",IF(ПотенційнийКлієнт[[#This Row],[Місяць \nпрогнозування]] = \"Прогноз на\",ПотенційнийКлієнт[Зважений \nпрогноз],0),\"\"),\"\")","v":""},{"$f":"IFERROR(IF(ПотенційнийКлієнт[[#This Row],[Місяць \nпрогнозування]] <>\"\",IF(ПотенційнийКлієнт[[#This Row],[Місяць \nпрогнозування]] = \"Прогноз на\",ПотенційнийКлієнт[Зважений \nпрогноз],0),\"\"),\"\")","v":""},{"$f":"IFERROR(IF(ПотенційнийКлієнт[[#This Row],[Місяць \nпрогнозування]] <>\"\",IF(ПотенційнийКлієнт[[#This Row],[Місяць \nпрогнозування]] = \"Прогноз на\",ПотенційнийКлієнт[Зважений \nпрогноз],0),\"\"),\"\")","v":""},{"$f":"IFERROR(IF(ПотенційнийКлієнт[[#This Row],[Місяць \nпрогнозування]] <>\"\",IF(ПотенційнийКлієнт[[#This Row],[Місяць \nпрогнозування]] = \"Прогноз на\",ПотенційнийКлієнт[Зважений \nпрогноз],0),\"\"),\"\")","v":""},{"$f":"IFERROR(IF(ПотенційнийКлієнт[[#This Row],[Місяць \nпрогнозування]] <>\"\",IF(ПотенційнийКлієнт[[#This Row],[Місяць \nпрогнозування]] = \"Прогноз на\",ПотенційнийКлієнт[Зважений \nпрогноз],0),\"\"),\"\")","v":""}]
[null,{"$f":"IFERROR(IF(AND(ПотенційнийКлієнт[[#This Row],[Назва потенційної компанії-клієнта]] <> \"\", ROW(ПрогнозованийЗбут[Назва потенційної компанії-клієнта])<>ОстаннійЗапис),ПотенційнийКлієнт[Назва потенційної компанії-клієнта], \"\"),\"\")","v":""},{"$f":"IFERROR(IF(ПотенційнийКлієнт[[#This Row],[Місяць \nпрогнозування]] <>\"\",IF(ПотенційнийКлієнт[[#This Row],[Місяць \nпрогнозування]]= \"Січень\",ПотенційнийКлієнт[Зважений \nпрогноз],0),\"\"),\"\")","v":""},{"$f":"IFERROR(IF(ПотенційнийКлієнт[[#This Row],[Місяць \nпрогнозування]] <>\"\",IF(ПотенційнийКлієнт[[#This Row],[Місяць \nпрогнозування]] = \"Лютий\",ПотенційнийКлієнт[Зважений \nпрогноз],0),\"\"),\"\")","v":""},{"$f":"IFERROR(IF(ПотенційнийКлієнт[[#This Row],[Місяць \nпрогнозування]] <>\"\",IF(ПотенційнийКлієнт[[#This Row],[Місяць \nпрогнозування]] = \"Березень\",ПотенційнийКлієнт[Зважений \nпрогноз],0),\"\"),\"\")","v":""},{"$f":"IFERROR(IF(ПотенційнийКлієнт[[#This Row],[Місяць \nпрогнозування]] <>\"\",IF(ПотенційнийКлієнт[[#This Row],[Місяць \nпрогнозування]] = \"Прогноз на\",ПотенційнийКлієнт[Зважений \nпрогноз],0),\"\"),\"\")","v":""},{"$f":"IFERROR(IF(ПотенційнийКлієнт[[#This Row],[Місяць \nпрогнозування]] <>\"\",IF(ПотенційнийКлієнт[[#This Row],[Місяць \nпрогнозування]] = \"Прогноз на\",ПотенційнийКлієнт[Зважений \nпрогноз],0),\"\"),\"\")","v":""},{"$f":"IFERROR(IF(ПотенційнийКлієнт[[#This Row],[Місяць \nпрогнозування]] <>\"\",IF(ПотенційнийКлієнт[[#This Row],[Місяць \nпрогнозування]] = \"Прогноз на\",ПотенційнийКлієнт[Зважений \nпрогноз],0),\"\"),\"\")","v":""},{"$f":"IFERROR(IF(ПотенційнийКлієнт[[#This Row],[Місяць \nпрогнозування]] <>\"\",IF(ПотенційнийКлієнт[[#This Row],[Місяць \nпрогнозування]] = \"July\",ПотенційнийКлієнт[Зважений \nпрогноз],0),\"\"),\"\")","v":""},{"$f":"IFERROR(IF(ПотенційнийКлієнт[[#This Row],[Місяць \nпрогнозування]] <>\"\",IF(ПотенційнийКлієнт[[#This Row],[Місяць \nпрогнозування]] = \"Прогноз на\",ПотенційнийКлієнт[Зважений \nпрогноз],0),\"\"),\"\")","v":""},{"$f":"IFERROR(IF(ПотенційнийКлієнт[[#This Row],[Місяць \nпрогнозування]] <>\"\",IF(ПотенційнийКлієнт[[#This Row],[Місяць \nпрогнозування]] = \"Прогноз на\",ПотенційнийКлієнт[Зважений \nпрогноз],0),\"\"),\"\")","v":""},{"$f":"IFERROR(IF(ПотенційнийКлієнт[[#This Row],[Місяць \nпрогнозування]] <>\"\",IF(ПотенційнийКлієнт[[#This Row],[Місяць \nпрогнозування]] = \"Прогноз на\",ПотенційнийКлієнт[Зважений \nпрогноз],0),\"\"),\"\")","v":""},{"$f":"IFERROR(IF(ПотенційнийКлієнт[[#This Row],[Місяць \nпрогнозування]] <>\"\",IF(ПотенційнийКлієнт[[#This Row],[Місяць \nпрогнозування]] = \"Прогноз на\",ПотенційнийКлієнт[Зважений \nпрогноз],0),\"\"),\"\")","v":""},{"$f":"IFERROR(IF(ПотенційнийКлієнт[[#This Row],[Місяць \nпрогнозування]] <>\"\",IF(ПотенційнийКлієнт[[#This Row],[Місяць \nпрогнозування]] = \"Прогноз на\",ПотенційнийКлієнт[Зважений \nпрогноз],0),\"\"),\"\")","v":""}]
[null,{"$f":"IFERROR(IF(AND(ПотенційнийКлієнт[[#This Row],[Назва потенційної компанії-клієнта]] <> \"\", ROW(ПрогнозованийЗбут[Назва потенційної компанії-клієнта])<>ОстаннійЗапис),ПотенційнийКлієнт[Назва потенційної компанії-клієнта], \"\"),\"\")","v":""},{"$f":"IFERROR(IF(ПотенційнийКлієнт[[#This Row],[Місяць \nпрогнозування]] <>\"\",IF(ПотенційнийКлієнт[[#This Row],[Місяць \nпрогнозування]]= \"Січень\",ПотенційнийКлієнт[Зважений \nпрогноз],0),\"\"),\"\")","v":""},{"$f":"IFERROR(IF(ПотенційнийКлієнт[[#This Row],[Місяць \nпрогнозування]] <>\"\",IF(ПотенційнийКлієнт[[#This Row],[Місяць \nпрогнозування]] = \"Лютий\",ПотенційнийКлієнт[Зважений \nпрогноз],0),\"\"),\"\")","v":""},{"$f":"IFERROR(IF(ПотенційнийКлієнт[[#This Row],[Місяць \nпрогнозування]] <>\"\",IF(ПотенційнийКлієнт[[#This Row],[Місяць \nпрогнозування]] = \"Березень\",ПотенційнийКлієнт[Зважений \nпрогноз],0),\"\"),\"\")","v":""},{"$f":"IFERROR(IF(ПотенційнийКлієнт[[#This Row],[Місяць \nпрогнозування]] <>\"\",IF(ПотенційнийКлієнт[[#This Row],[Місяць \nпрогнозування]] = \"Прогноз на\",ПотенційнийКлієнт[Зважений \nпрогноз],0),\"\"),\"\")","v":""},{"$f":"IFERROR(IF(ПотенційнийКлієнт[[#This Row],[Місяць \nпрогнозування]] <>\"\",IF(ПотенційнийКлієнт[[#This Row],[Місяць \nпрогнозування]] = \"Прогноз на\",ПотенційнийКлієнт[Зважений \nпрогноз],0),\"\"),\"\")","v":""},{"$f":"IFERROR(IF(ПотенційнийКлієнт[[#This Row],[Місяць \nпрогнозування]] <>\"\",IF(ПотенційнийКлієнт[[#This Row],[Місяць \nпрогнозування]] = \"Прогноз на\",ПотенційнийКлієнт[Зважений \nпрогноз],0),\"\"),\"\")","v":""},{"$f":"IFERROR(IF(ПотенційнийКлієнт[[#This Row],[Місяць \nпрогнозування]] <>\"\",IF(ПотенційнийКлієнт[[#This Row],[Місяць \nпрогнозування]] = \"July\",ПотенційнийКлієнт[Зважений \nпрогноз],0),\"\"),\"\")","v":""},{"$f":"IFERROR(IF(ПотенційнийКлієнт[[#This Row],[Місяць \nпрогнозування]] <>\"\",IF(ПотенційнийКлієнт[[#This Row],[Місяць \nпрогнозування]] = \"Прогноз на\",ПотенційнийКлієнт[Зважений \nпрогноз],0),\"\"),\"\")","v":""},{"$f":"IFERROR(IF(ПотенційнийКлієнт[[#This Row],[Місяць \nпрогнозування]] <>\"\",IF(ПотенційнийКлієнт[[#This Row],[Місяць \nпрогнозування]] = \"Прогноз на\",ПотенційнийКлієнт[Зважений \nпрогноз],0),\"\"),\"\")","v":""},{"$f":"IFERROR(IF(ПотенційнийКлієнт[[#This Row],[Місяць \nпрогнозування]] <>\"\",IF(ПотенційнийКлієнт[[#This Row],[Місяць \nпрогнозування]] = \"Прогноз на\",ПотенційнийКлієнт[Зважений \nпрогноз],0),\"\"),\"\")","v":""},{"$f":"IFERROR(IF(ПотенційнийКлієнт[[#This Row],[Місяць \nпрогнозування]] <>\"\",IF(ПотенційнийКлієнт[[#This Row],[Місяць \nпрогнозування]] = \"Прогноз на\",ПотенційнийКлієнт[Зважений \nпрогноз],0),\"\"),\"\")","v":""},{"$f":"IFERROR(IF(ПотенційнийКлієнт[[#This Row],[Місяць \nпрогнозування]] <>\"\",IF(ПотенційнийКлієнт[[#This Row],[Місяць \nпрогнозування]] = \"Прогноз на\",ПотенційнийКлієнт[Зважений \nпрогноз],0),\"\"),\"\")","v":""}]
[null,{"$f":"IFERROR(IF(AND(ПотенційнийКлієнт[[#This Row],[Назва потенційної компанії-клієнта]] <> \"\", ROW(ПрогнозованийЗбут[Назва потенційної компанії-клієнта])<>ОстаннійЗапис),ПотенційнийКлієнт[Назва потенційної компанії-клієнта], \"\"),\"\")","v":""},{"$f":"IFERROR(IF(ПотенційнийКлієнт[[#This Row],[Місяць \nпрогнозування]] <>\"\",IF(ПотенційнийКлієнт[[#This Row],[Місяць \nпрогнозування]]= \"Січень\",ПотенційнийКлієнт[Зважений \nпрогноз],0),\"\"),\"\")","v":""},{"$f":"IFERROR(IF(ПотенційнийКлієнт[[#This Row],[Місяць \nпрогнозування]] <>\"\",IF(ПотенційнийКлієнт[[#This Row],[Місяць \nпрогнозування]] = \"Лютий\",ПотенційнийКлієнт[Зважений \nпрогноз],0),\"\"),\"\")","v":""},{"$f":"IFERROR(IF(ПотенційнийКлієнт[[#This Row],[Місяць \nпрогнозування]] <>\"\",IF(ПотенційнийКлієнт[[#This Row],[Місяць \nпрогнозування]] = \"Березень\",ПотенційнийКлієнт[Зважений \nпрогноз],0),\"\"),\"\")","v":""},{"$f":"IFERROR(IF(ПотенційнийКлієнт[[#This Row],[Місяць \nпрогнозування]] <>\"\",IF(ПотенційнийКлієнт[[#This Row],[Місяць \nпрогнозування]] = \"Прогноз на\",ПотенційнийКлієнт[Зважений \nпрогноз],0),\"\"),\"\")","v":""},{"$f":"IFERROR(IF(ПотенційнийКлієнт[[#This Row],[Місяць \nпрогнозування]] <>\"\",IF(ПотенційнийКлієнт[[#This Row],[Місяць \nпрогнозування]] = \"Прогноз на\",ПотенційнийКлієнт[Зважений \nпрогноз],0),\"\"),\"\")","v":""},{"$f":"IFERROR(IF(ПотенційнийКлієнт[[#This Row],[Місяць \nпрогнозування]] <>\"\",IF(ПотенційнийКлієнт[[#This Row],[Місяць \nпрогнозування]] = \"Прогноз на\",ПотенційнийКлієнт[Зважений \nпрогноз],0),\"\"),\"\")","v":""},{"$f":"IFERROR(IF(ПотенційнийКлієнт[[#This Row],[Місяць \nпрогнозування]] <>\"\",IF(ПотенційнийКлієнт[[#This Row],[Місяць \nпрогнозування]] = \"July\",ПотенційнийКлієнт[Зважений \nпрогноз],0),\"\"),\"\")","v":""},{"$f":"IFERROR(IF(ПотенційнийКлієнт[[#This Row],[Місяць \nпрогнозування]] <>\"\",IF(ПотенційнийКлієнт[[#This Row],[Місяць \nпрогнозування]] = \"Прогноз на\",ПотенційнийКлієнт[Зважений \nпрогноз],0),\"\"),\"\")","v":""},{"$f":"IFERROR(IF(ПотенційнийКлієнт[[#This Row],[Місяць \nпрогнозування]] <>\"\",IF(ПотенційнийКлієнт[[#This Row],[Місяць \nпрогнозування]] = \"Прогноз на\",ПотенційнийКлієнт[Зважений \nпрогноз],0),\"\"),\"\")","v":""},{"$f":"IFERROR(IF(ПотенційнийКлієнт[[#This Row],[Місяць \nпрогнозування]] <>\"\",IF(ПотенційнийКлієнт[[#This Row],[Місяць \nпрогнозування]] = \"Прогноз на\",ПотенційнийКлієнт[Зважений \nпрогноз],0),\"\"),\"\")","v":""},{"$f":"IFERROR(IF(ПотенційнийКлієнт[[#This Row],[Місяць \nпрогнозування]] <>\"\",IF(ПотенційнийКлієнт[[#This Row],[Місяць \nпрогнозування]] = \"Прогноз на\",ПотенційнийКлієнт[Зважений \nпрогноз],0),\"\"),\"\")","v":""},{"$f":"IFERROR(IF(ПотенційнийКлієнт[[#This Row],[Місяць \nпрогнозування]] <>\"\",IF(ПотенційнийКлієнт[[#This Row],[Місяць \nпрогнозування]] = \"Прогноз на\",ПотенційнийКлієнт[Зважений \nпрогноз],0),\"\"),\"\")","v":""}]
[null,{"$f":"IFERROR(IF(AND(ПотенційнийКлієнт[[#This Row],[Назва потенційної компанії-клієнта]] <> \"\", ROW(ПрогнозованийЗбут[Назва потенційної компанії-клієнта])<>ОстаннійЗапис),ПотенційнийКлієнт[Назва потенційної компанії-клієнта], \"\"),\"\")","v":""},{"$f":"IFERROR(IF(ПотенційнийКлієнт[[#This Row],[Місяць \nпрогнозування]] <>\"\",IF(ПотенційнийКлієнт[[#This Row],[Місяць \nпрогнозування]]= \"Січень\",ПотенційнийКлієнт[Зважений \nпрогноз],0),\"\"),\"\")","v":""},{"$f":"IFERROR(IF(ПотенційнийКлієнт[[#This Row],[Місяць \nпрогнозування]] <>\"\",IF(ПотенційнийКлієнт[[#This Row],[Місяць \nпрогнозування]] = \"Лютий\",ПотенційнийКлієнт[Зважений \nпрогноз],0),\"\"),\"\")","v":""},{"$f":"IFERROR(IF(ПотенційнийКлієнт[[#This Row],[Місяць \nпрогнозування]] <>\"\",IF(ПотенційнийКлієнт[[#This Row],[Місяць \nпрогнозування]] = \"Березень\",ПотенційнийКлієнт[Зважений \nпрогноз],0),\"\"),\"\")","v":""},{"$f":"IFERROR(IF(ПотенційнийКлієнт[[#This Row],[Місяць \nпрогнозування]] <>\"\",IF(ПотенційнийКлієнт[[#This Row],[Місяць \nпрогнозування]] = \"Прогноз на\",ПотенційнийКлієнт[Зважений \nпрогноз],0),\"\"),\"\")","v":""},{"$f":"IFERROR(IF(ПотенційнийКлієнт[[#This Row],[Місяць \nпрогнозування]] <>\"\",IF(ПотенційнийКлієнт[[#This Row],[Місяць \nпрогнозування]] = \"Прогноз на\",ПотенційнийКлієнт[Зважений \nпрогноз],0),\"\"),\"\")","v":""},{"$f":"IFERROR(IF(ПотенційнийКлієнт[[#This Row],[Місяць \nпрогнозування]] <>\"\",IF(ПотенційнийКлієнт[[#This Row],[Місяць \nпрогнозування]] = \"Прогноз на\",ПотенційнийКлієнт[Зважений \nпрогноз],0),\"\"),\"\")","v":""},{"$f":"IFERROR(IF(ПотенційнийКлієнт[[#This Row],[Місяць \nпрогнозування]] <>\"\",IF(ПотенційнийКлієнт[[#This Row],[Місяць \nпрогнозування]] = \"July\",ПотенційнийКлієнт[Зважений \nпрогноз],0),\"\"),\"\")","v":""},{"$f":"IFERROR(IF(ПотенційнийКлієнт[[#This Row],[Місяць \nпрогнозування]] <>\"\",IF(ПотенційнийКлієнт[[#This Row],[Місяць \nпрогнозування]] = \"Прогноз на\",ПотенційнийКлієнт[Зважений \nпрогноз],0),\"\"),\"\")","v":""},{"$f":"IFERROR(IF(ПотенційнийКлієнт[[#This Row],[Місяць \nпрогнозування]] <>\"\",IF(ПотенційнийКлієнт[[#This Row],[Місяць \nпрогнозування]] = \"Прогноз на\",ПотенційнийКлієнт[Зважений \nпрогноз],0),\"\"),\"\")","v":""},{"$f":"IFERROR(IF(ПотенційнийКлієнт[[#This Row],[Місяць \nпрогнозування]] <>\"\",IF(ПотенційнийКлієнт[[#This Row],[Місяць \nпрогнозування]] = \"Прогноз на\",ПотенційнийКлієнт[Зважений \nпрогноз],0),\"\"),\"\")","v":""},{"$f":"IFERROR(IF(ПотенційнийКлієнт[[#This Row],[Місяць \nпрогнозування]] <>\"\",IF(ПотенційнийКлієнт[[#This Row],[Місяць \nпрогнозування]] = \"Прогноз на\",ПотенційнийКлієнт[Зважений \nпрогноз],0),\"\"),\"\")","v":""},{"$f":"IFERROR(IF(ПотенційнийКлієнт[[#This Row],[Місяць \nпрогнозування]] <>\"\",IF(ПотенційнийКлієнт[[#This Row],[Місяць \nпрогнозування]] = \"Прогноз на\",ПотенційнийКлієнт[Зважений \nпрогноз],0),\"\"),\"\")","v":""}]
[null,"Підсумок",{"$f":"SUBTOTAL(109,ПрогнозованийЗбут[Прогноз на \nсічень])","v":{"v":270000,"d":"270,000 ₴"}},{"$f":"SUBTOTAL(109,ПрогнозованийЗбут[Прогноз на \nлютий])","v":{"v":20000,"d":"20,000 ₴"}},{"$f":"SUBTOTAL(109,ПрогнозованийЗбут[Прогноз на \nберезень])","v":{"v":20000,"d":"20,000 ₴"}},{"$f":"SUBTOTAL(109,ПрогнозованийЗбут[Прогноз на \nквітень])","v":{"v":0,"d":"0 ₴"}},{"$f":"SUBTOTAL(109,ПрогнозованийЗбут[Прогноз на \nтравень])","v":{"v":0,"d":"0 ₴"}},{"$f":"SUBTOTAL(109,ПрогнозованийЗбут[Прогноз на \nчервень])","v":{"v":0,"d":"0 ₴"}},{"$f":"SUBTOTAL(109,ПрогнозованийЗбут[Прогноз на липень])","v":{"v":0,"d":"0 ₴"}},{"$f":"SUBTOTAL(109,ПрогнозованийЗбут[Прогноз на \nсерпень])","v":{"v":0,"d":"0 ₴"}},{"$f":"SUBTOTAL(109,ПрогнозованийЗбут[Прогноз на \nвересень])","v":{"v":0,"d":"0 ₴"}},{"$f":"SUBTOTAL(109,ПрогнозованийЗбут[Прогноз на \nжовтень])","v":{"v":0,"d":"0 ₴"}},{"$f":"SUBTOTAL(109,ПрогнозованийЗбут[Прогноз на \nлистопад])","v":{"v":0,"d":"0 ₴"}},{"$f":"SUBTOTAL(109,ПрогнозованийЗбут[Прогноз на \nгрудень])","v":{"v":0,"d":"0 ₴"}}]
[null,"Загальний сукупний дохід",{"$f":"C20","v":{"v":270000,"d":"270,000 ₴"}},{"$f":"C21+D20","v":{"v":290000,"d":"290,000 ₴"}},{"$f":"D21+E20","v":{"v":310000,"d":"310,000 ₴"}},{"$f":"E21+F20","v":{"v":310000,"d":"310,000 ₴"}},{"$f":"F21+G20","v":{"v":310000,"d":"310,000 ₴"}},{"$f":"G21+H20","v":{"v":310000,"d":"310,000 ₴"}},{"$f":"H21+I20","v":{"v":310000,"d":"310,000 ₴"}},{"$f":"I21+J20","v":{"v":310000,"d":"310,000 ₴"}},{"$f":"J21+K20","v":{"v":310000,"d":"310,000 ₴"}},{"$f":"K21+L20","v":{"v":310000,"d":"310,000 ₴"}},{"$f":"L21+M20","v":{"v":310000,"d":"310,000 ₴"}},{"$f":"M21+N20","v":{"v":310000,"d":"310,000 ₴"}}]

{"sheet":"Щомісячний зважений прогноз","index":2,"n_rows":3,"n_cols":2,"rows_kept":3}
[null,{"$f":"Назва_компанії","v":"Назва компанії"}]
[null,"Щомісячний зважений прогноз"]
[null," "]